Cogmind - Beta 13 @@@ ROGUE MODE // 2024.04.30 @ 10:03:02 Player: WarMechanic Result: Destroyed by G-34 Mercenary with Small Laser Performance ------------- Evolutions (1) 500 Regions Visited (2) 400 Robots Destroyed (45) 225 Value Destroyed (1063) 1063 Prototype IDs (0) 0 Alien Tech Used (0) 0 Bonus (0) 0 TOTAL SCORE: 2188 Bonus ------- None Cogmind --------- Core Integrity 0/400 Matter 203/300 Energy 100/100 System Corruption 0% Temperature Cool (15) Movement Core (400) Ox7 Location -9/Materials Parts ------- > --- POWER (1) -------- (None) > --- PROPULSION (2) --- (None) > --- UTILITY (4) ------ Large Storage Unit Signal Interpreter Transport Network Coupler > --- WEAPON (2) ------- Heavy Assault Rifle > --- INVENTORY (15) --- Large Storage Unit ECM Suite Advanced Beam Cannon Advanced Beam Cannon Datajack Datajack Plasma Cutter Plasma Cutter Mining Claw Mining Claw Peak State ------------ > --- POWER ------------ Ion Engine > --- PROPULSION ------- Light Treads Light Treads > --- UTILITY ---------- Large Storage Unit Signal Interpreter Seismic Detector Transport Network Coupler > --- WEAPON ----------- EM Pulse Gun Plasma Cutter > --- INVENTORY -------- Ion Engine Ion Engine Light Treads Large Storage Unit ECM Suite Advanced Beam Cannon Advanced Beam Cannon Light Assault Rifle Light Assault Rifle Datajack Datajack Datajack Plasma Cutter Mining Claw Mining Claw [Rating: 12] Favorites ----------- Power Ion Engine Engine Ion Engine Propulsion Aluminum Leg Treads Light Treads Leg Aluminum Leg Wheel Wheel Utility Large Storage Unit Device Seismic Detector Storage Large Storage Unit Processor Signal Interpreter Protection Backup Plating I Weapon Light Assault Rifle Energy Gun EM Pulse Gun Ballistic Gun Light Assault Rifle Launcher Grenade Launcher Special Weapon Plasma Cutter Slashing Weapon Mining Claw Special Melee Weapon Datajack Build | -11 -10 -9 ------- Run | Yrd Mat Mat Slots Evolved 2 | . . 2 Power . | . . . Propulsion . | . . . Utility 2 | . . 2 Weapon . | . . . Parts Attached 78 | 10 43 25 Power 4 | 1 2 1 Engine 4 | 1 2 1 Core . | . . . Reactor . | . . . Propulsion 20 | 5 9 6 Treads 5 | . 2 3 Leg 13 | 3 7 3 Wheel 2 | 2 . . Hover . | . . . Flight . | . . . Utility 16 | 2 9 5 Device 9 | 2 6 1 Storage 5 | . 3 2 Processor 2 | . . 2 Hackware . | . . . Protection . | . . . Artifact . | . . . Weapon 38 | 2 23 13 Energy Gun 6 | 1 5 . Energy Cannon . | . . . Ballistic Gun 18 | 1 9 8 Ballistic Cannon . | . . . Launcher 4 | . 4 . Special Weapon 1 | . . 1 Impact Weapon . | . . . Slashing Weapon 3 | . 1 2 Piercing Weapon . | . . . Special Melee Weapon 6 | . 4 2 Unidentified Prototypes . | . . . Parts Lost 15 | . 5 10 Power 2 | . 1 1 Propulsion 4 | . . 4 Utility 4 | . 3 1 Weapon 5 | . 1 4 Highest Loss Streak 4 | . 2 4 To Critical Strikes . | . . . Average Slot Usage (%) 95 | . 98 84 Engine 12 | . 13 9 Treads 7 | . 5 15 Leg 18 | . 22 2 Device 10 | . 12 5 Storage 10 | . 10 11 Processor 4 | . . 22 Protection 3 | . 3 . Energy Gun 10 | . 12 5 Ballistic Gun 12 | . 13 7 Slashing Weapon 1 | . 1 3 Naked Turns . | . . . Heaviest Build 30 | 8 30 30 Greatest Support 40 | 3 40 40 Greatest Overweight (x) 8 | 2 3 8 Average Overweight (x) . | 1 . . Largest Inventory Capacity 15 | 5 15 15 Average Capacity 12 | 5 12 15 Most Carried 15 | 5 15 15 Average Carried 10 | 4 10 13 Final Capacity 15 | 5 15 15 Final Carried 15 | 5 15 10 Class Distribution -------------------- 59% | Mutant 40% | Scavenger-Mutant Dominant Class ---------------- Mutant | -10/Materials Scavenger-Mutant | -9/Materials Resources | -11 -10 -9 ----------- Run | Yrd Mat Mat Matter Collected 1278 | 336 703 239 Remotely . | . . . Salvage Created 1495 | 135 858 502 Parts 100 | 13 58 29 Haulers Intercepted 2 | . 1 1 Recyclers Shooed 1 | . 1 . Parts Field Recycled . | . . . Retrieved Matter . | . . . Parts Self-Destructed . | . . . Prevented . | . . . Kills | -11 -10 -9 ------- Run | Yrd Mat Mat Combat Hostiles Destroyed 30 | 1 19 10 Guns 24 | 1 13 10 AOE 6 | . 6 . Classes Destroyed 11 | 3 6 2 Worker 2 | 1 1 . Builder 1 | . 1 . Tunneler 4 | 4 . . Hauler 2 | . 1 1 Recycler 3 | . 2 1 Operator 2 | . 2 . Watcher 1 | . 1 . Swarmer 6 | . 3 3 Grunt 22 | 1 16 5 Brawler 1 | . . 1 Sentry 1 | . . 1 Best Kill Streak 5 | 1 5 3 Combat Bots Only 4 | 1 4 3 Max Kills in Single Turn 3 | 1 3 1 Gunslinging . | . . . Exploded 2 | . 2 . Melee . | . . . Uniques/NPCs Destroyed . | . . . Combat | -11 -10 -9 -------- Run | Yrd Mat Mat Hostile Shots Fired 293 | 6 93 194 Missed 85 | 3 18 64 Damage Taken 2483 | 33 960 1490 Core 575 | . 172 403 Absorbed by Shields . | . . . Regen/Repaired (Parts) 30 | . . 30 Core Remaining (%) 65 | 100 31 . Volleys Fired 203 | 13 120 70 Largest 2 | 2 2 2 Hottest 60 | 60 60 60 Shots Fired 333 | 26 209 98 Gun 314 | 26 198 90 Cannon . | . . . Launcher 11 | . 11 . Special 8 | . . 8 Kinetic 240 | 13 140 87 Thermal 30 | 13 9 8 Explosive 11 | . 11 . Electromagnetic 52 | . 49 3 Robot Hit Streak 19 | 6 19 9 Robot Miss Streak 5 | 3 5 3 Penetration Max . | . . . Secondary Targets 3 | . . 3 Max Gunslinging Chain 1 | . . 1 Shots Hit Robots 187 | 16 110 61 Core Hits 85 | 7 51 27 Critical Kills . | . . . Critical Parts Destroyed 1 | . . 1 Critical Strikes 2 | . 1 1 Destroy 1 | . . 1 Corrupt 1 | . 1 . Melee Attacks 22 | . 19 3 Impact . | . . . Slashing 12 | . 11 1 Piercing . | . . . Sneak Attacks 11 | . 8 3 Combat Hostiles . | . . . Follow-up Attacks . | . . . Damage Inflicted 2551 | 201 1637 713 Guns 1863 | 195 999 669 Cannons . | . . . Explosions 555 | . 555 . Melee 106 | . 62 44 Ramming 27 | 6 21 . Kinetic 1449 | 129 673 647 Thermal 333 | 66 267 . Explosive 351 | . 351 . Electromagnetic 285 | . 263 22 Impact . | . . . Slashing 106 | . 62 44 Piercing . | . . . Highest Corruption 1 | . 1 . Average Corruption 1 | . 1 . Corruption Purged . | . . . Corruption Blocked . | . . . Effects 21 | . 21 . Message Errors 5 | . 5 . Matter Fused 9 | . 9 . Heat Flow Errors 1 | . 1 . Parts Fused 1 | . 1 . Data Loss (minor) 1 | . 1 . Data Loss (major) 3 | . 3 . Misfires 1 | . 1 . Overload Shots . | . . . Overflow Damage 53 | . 39 14 Projectiles . | . . . Explosions 7 | . 7 . Melee 46 | . 32 14 Knockbacks . | . . . Impact . | . . . Kinetic . | . . . Secondary . | . . . Self-Inflicted Damage 131 | 3 128 . Shots 6 | . 6 . Rammed 2 | 1 1 . Targets Rammed 3 | 1 2 . Kicked . | . . . Crushed 1 | . 1 . Highest Temperature 272 | 1 272 24 Average Temperature 33 | 1 38 6 Received Heat Transfer 1122 | 18 471 633 Siege Activations . | . . . Robots Corrupted . | . . . Combat Hostiles . | . . . Parts Fried 1 | . 1 . Impact Corruptions . | . . . Robots Melted . | . . . Combat Hostiles . | . . . Parts Melted . | . . . Heat Transferred 500 | 150 350 . Parts Sabotaged . | . . . Parts Stolen . | . . . Parts Stripped . | . . . Power Chain Reactions 3 | . 3 . Alert | -11 -10 -9 ------- Run | Yrd Mat Mat Peak Influence 313 | 45 313 150 Initial 72 | . . 72 Average 148 | 26 183 84 Maximum Alert Level 1 | . 1 . Low Security (%) 73 | 100 63 100 Level 1 26 | . 36 . Level 2 . | . . . Level 3 . | . . . Level 4 . | . . . Level 5 . | . . . High Security . | . . . Max Security . | . . . Squads Dispatched 9 | . 7 2 Investigation 6 | . 5 1 Extermination . | . . . Reinforcement 3 | . 2 1 Assault . | . . . Garrison . | . . . Intercept . | . . . Searches Triggered . | . . . Construction Impeded . | . . . Haulers Reinforced . | . . . Active Scanning Responses . | . . . Cargo Convoy Interrupts . | . . . Stealth | -11 -10 -9 --------- Run | Yrd Mat Mat Distress Signals 1 | . 1 . Communications Jammed . | . . . Distress Signals . | . . . Times Spotted 69 | 1 46 22 Peak Tracking Total 8 | 1 5 8 Tactical Retreats 2 | . 1 1 Traps | -11 -10 -9 ------- Run | Yrd Mat Mat Traps Triggered 7 | . 3 4 Indirectly . | . . . Trap Hack Attempts . | . . . Triggered . | . . . Disarmed . | . . . Reprogrammed . | . . . Reused . | . . . Traps Extracted . | . . . Installed . | . . . Triggered . | . . . Machines | -11 -10 -9 ---------- Run | Yrd Mat Mat Machines Disabled 3 | . 3 . Max in Single Turn 1 | . 1 . Machines Repaired . | . . . Machines Dismantled . | . . . Machines Sabotaged . | . . . Overloaded Fab Kills . | . . . Hacking | -11 -10 -9 --------- Run | Yrd Mat Mat Machines Accessed 11 | . 9 2 Terminals 6 | . 6 . Fabricators . | . . . Repair Stations 2 | . 1 1 Recycling Units 3 | . 2 1 Scanalyzers . | . . . Garrison Access . | . . . Total Hacks 36 | . 32 4 Successful 16 | . 12 4 Failed 20 | . 20 . Catastrophic 3 | . 3 . Database Lockouts . | . . . Manual 25 | . 25 . Terminals 22 | . 22 . Fabricators . | . . . Repair Stations 6 | . 3 3 Recycling Units 8 | . 7 1 Scanalyzers . | . . . Garrison Access . | . . . Terminal Hacks 7 | . 7 . Record 1 | . 1 . Part Schematic 1 | . 1 . Terminal Index 1 | . 1 . Alert Level 1 | . 1 . Locate Traps 1 | . 1 . Hauler Manifests 1 | . 1 . Zone Layout 1 | . 1 . Fabricator Hacks . | . . . Repair Station Hacks 4 | . 1 3 Scan Component 2 | . . 2 Repair 1 | . . 1 Refit 1 | . 1 . Recycling Unit Hacks 5 | . 4 1 Process 1 | . 1 . Report Inventory 2 | . 1 1 Retrieve Matter 1 | . 1 . Retrieve Components 1 | . 1 . Scanalyzer . | . . . Garrison Access Hacks . | . . . Unauthorized Hacks . | . . . Terminals . | . . . Fabricators . | . . . Repair Stations . | . . . Recycling Units . | . . . Scanalyzers . | . . . Garrison Access . | . . . Data Cores Recovered . | . . . Used . | . . . Hacking Detections 8 | . 8 . Full Trace Events 7 | . 7 . Feedback Events . | . . . Feedback Blocked . | . . . Robot Schematics Acquired . | . . . Robots Built . | . . . Authchips . | . . . Time . | . . . Total Robot Build Rating . | . . . Part Schematics Acquired 1 | . 1 . Parts Built . | . . . Authchips . | . . . Time . | . . . Total Part Build Rating . | . . . Parts Repaired 1 | . . 1 Time 26 | . . 26 Parts Recycled . | . . . Recycled Matter 5 | . 5 . Retrieved Matter 36 | . 36 . Retrieved Components . | . . . Parts Scanalyzed . | . . . Part Schematics Acquired . | . . . Parts Damaged . | . . . Bothacking | -11 -10 -9 ------------ Run | Yrd Mat Mat Used RIF Installer . | . . . Robots Hacked 8 | . 6 2 Non-combat 8 | . 6 2 Combat . | . . . Robot Hacks Applied 9 | . 7 2 parse_system 4 | . 4 . no_distress 3 | . 1 2 find_recycling 2 | . 2 . Relay Couplers Released . | . . . Fabnet Peak Effective % . | . . . Robots Rewired . | . . . Allies Hacked . | . . . Hacks Repelled . | . . . Allies | -11 -10 -9 -------- Run | Yrd Mat Mat Total Allies . | . . . Largest Group . | . . . Highest-Rated Group . | . . . Highest-Rated Ally . | . . . Total Orders . | . . . Ally Attacks . | . . . Total Damage . | . . . Kills . | . . . Allies Corrupted . | . . . Allies Melted . | . . . Intel | -11 -10 -9 ------- Run | Yrd Mat Mat Robot Analysis Total . | . . . Derelict Logs Recovered . | . . . Drone Launches . | . . . Drone Recoveries . | . . . Exploration | -11 -10 -9 ------------- Run | Yrd Mat Mat Turns Passed 4017 | 417 2836 764 Spaces Moved 1972 | 324 1373 275 Core 542 | 324 189 29 Treads 516 | . 296 220 Legs 914 | . 888 26 Wheels . | . . . Hover . | . . . Flight . | . . . Fastest Speed 50 | 50 120 160 Average Speed 165 | 108 172 195 Slowest Speed 450 | 150 240 450 Overloaded Moves . | . . . Propulsion Burnouts . | . . . Robots Hopped . | . . . Cave-ins Triggered . | . . . Exploration Rate (%) 41 | 8 97 18 Regions Visited 2 Branch Regions . Pre-discovered Areas . | . . . Known Exits Taken . | . . . Unknown Exits Taken 2 | 1 1 . Scrap Searched . | . . . Spaces Dug 19 | . 19 . Terrain Destroyed 75 | . 75 . Melee 9 | . 9 . Projectile . | . . . AOE 66 | . 66 . Terrain Rammed . | . . . Walls Destroyed . | . . . Machines Disabled . | . . . Actions | -11 -10 -9 --------- Run | Yrd Mat Mat Total 2386 | 364 1614 408 Wait 15 | 1 12 2 Move 1970 | 323 1372 275 Hop . | . . . Pick Up 66 | 12 30 24 Fast Attach 4 | 2 . 2 Attach 28 | 7 5 16 Detach 4 | 2 . 2 Swap 46 | 1 38 7 Drop 25 | 2 16 7 Fire 203 | 13 120 70 Melee 22 | . 19 3 Ram 1 | 1 . . Kick . | . . . Crush 2 | . 2 . Escape Stasis . | . . . Rewire . | . . . Trap . | . . . Miscellaneous . | . . . Route ------- -11/Scrapyard -10/Materials (discovered 5 exits: *Mat x3 / [*Min] / [*Sub]) -9/Materials History --------- Turn | Location | Event 2 | -11/Scrapyard | Met Revision 17 74 | -11/Scrapyard | Discovered new exit (range 8) 418 | -11/Scrapyard | Entered Materials 419 | -10/Materials | Build established: Mutant 880 | -10/Materials | Discovered new exit (range 16) 1018 | -10/Materials | Discovered new exit (range 16) 1161 | -10/Materials | Build established: Scavenger-Mutant 1254 | -10/Materials | Discovered new exit (range 10) 1740 | -10/Materials | Core integrity fell below 50% 1946 | -10/Materials | Build established: Mutant 2453 | -10/Materials | Discovered new exit (range 11) 2992 | -10/Materials | Discovered new exit (range 6) 3254 | -10/Materials | Entered another Materials area 3254 | -9/Materials | Evolved 2 slots: Utility x2 3353 | -9/Materials | Repaired Lrg. Storage Unit 3568 | -9/Materials | Build established: Scavenger-Mutant 3970 | -9/Materials | Core integrity fell below 50% 3983 | -9/Materials | Lost 3 parts (1p1n1w) 4005 | -9/Materials | Core integrity fell below 20% 4018 | -9/Materials | Destroyed by G-34 Mercenary with Small Laser Last Messages --------------- 03987_ ALERT: Hostiles spotted, dispatching reinforcements to Terminal M001. 03991_ Lgt. Assault Rifle destroyed. 03991_ Critical hit (Burn: +37). 03994_ U-05 Engineer lays Concrete. 03994_ Acquired Hvy. Assault Rifle. 03995_ U-05 Engineer lays Concrete. 03999_ Aluminum Leg destroyed. 03999_ U-05 Engineer lays Concrete. 03999_ G-34 Mercenary destroyed. 03999_ Switching to secondary target: Y-45 Defender. 04001_ K-01 Serf collects debris. 04011_ Aluminum Leg destroyed. 04014_ K-01 Serf collects debris. 04015_ Hvy. Assault Rifle destroyed. 04015_ Critical hit (Burn: +37). 04017_ G-47 Trooper destroyed. 04017_ K-01 Serf collects debris. [Achievement: First Step to Greatness] Map ----- +----------------------------------------------------+ | ?????????????????????????????????????????????????? | | ?????????????????????????????????????????????????? | | ?????????????????????????????????????????????????? | | ?????????????????????????????????????????????????? | | ?????????????????????????????????????????????????? | | ?????????????????????????????????????????????????? | | ?????????????????????????????????????????????????? | | ?????????????????????????????????????????????????? | | ?????????????????????????????????????????????????? | | ?????????????????????????????????????????????????? | | ?????????????????????????????????????????????????? | | ?????????????????????????????????????????????????? | | ?????????????????????????????????????????????????? | | ??????????????? ?????????????????????????????????? | | ??????????????# ?????????????????????????????????? | | ?????????###### #????????????????????????????????? | | ??????? ##??????????????????????????????? | | ??????? ??????????????????????????????? | | ???????? #??????????????????????????????? | | ????????# % #??????????????????????????????? | | ????????# #??????????????? #?????????????? | | ????????# % #?????????????? ??????????????? | | ????????# #???????????? ????????????????? | | ????????# ############+###???????????????? | | ????????# u%=kgg [[ #???????????????? | | ????????# ! [%Y @[ #???????????????? | | ????????# g m% ! #???????????????? | | ????????# g #???????????????? | | ????????# #???????????????? | | ????????# ##### #???????????????? | | ????????# #???# #???????????????? | | ??####### #??"" """"" #???????????????? | | #?"T a """"" #???????????????? | | ??######### ##""" """"" #???????????????? | | ??????????# ##### """"" ??????????????? | | ??????????# #???" u """"??? ??????????????? | | ??????????# #???" """?????? ?????????????? | | ??????????# #??"T ""?????????????????????? | | ??????????# #???" ??????????????????????? | | ???????####+## %#???" ??????????????????????? | | ??????# ?# %#???# ?????????????????????? | | ??????# """?# #???# ??????????????????????? | | ??????# """ #^ #???# ?????????????????????? | | ??????# """ # #????#+##??????????????????????? | | ??????# + #??????????????????????????????? | | ??????# # #??????????????????????????????? | | ????########## #??????????????????????????????? | | ????# # #??????????????????????????????? | | ????# """ # #??????????????????????????????? | | ????# """ # #??????###########?????????????? | +----------------------------------------------------+ Best States ------------- Heat Dissipation 28 Energy Generation 10 Energy Capacity 250 Matter Stores 300 Matter Capacity 300 Sight Range 16 Terrain Scan Range 16 Terrain Scan Density 10 ECM Strength 1 Armor Coverage 80 Evasion (%) 55 Recoil Reduction 2 Item Schematics ----------------- Datajack | -10/Materials | Hacked Robot Schematics ------------------ None Fabricated ------------ Nothing Alien Tech Used ----------------- None Achievements -------------- Crack Shot First Step to Greatness Loot Pinata One Hack Too Far Part-time Mechanic Shopping List Storm Trooper Uninvited Guest Challenges ------------ None Game ------ Seed GhostScanDetector Manual? 0 Play Time 01:08:12 Cumulative 1.1 hours Start 2024.04.30 @ 08:36:56 End 2024.04.30 @ 10:03:02 Sessions 1 Manual Loads 0 Difficulty Rogue Special Mode None Game No. 1 Rogue 1 Adventurer 0 Explorer 0 Win Type - Total 0 Types 0/0/0/0/0/0/0/0/0 Lore% 0 Gallery% 3 Achievement% 3 Wizard Run 0 Options --------- Layout 1 ASCII 1 Keyboard 0 Movement Arrows Keybinds 0 Fullscreen 1 Font 24/Crisp Map View 50x35 Zoom Use 0% Tactical HUD 1 Map Filters NONE Filters NONE Steam 1 RUN: 5700cea9-1268-481c-9f8d-3261654af9f5